bitfinex-derivatives/quotes_ETHF0:USTF0_20240826
["timestamp","ask_amount","ask_price","bid_price","bid_amount"]
[1724709584804,2.64256,2686.2,2686.1,5.56722989]
[1724709586206,1.71216,2686.2,2686.1,5.56722989]
[1724709588809,4.15126465,2686.2,2686.1,5.56722989]
[1724709589202,1.71216,2686.2,2686.1,5.56722989]
[1724709589411,4.15129031,2686.2,2686.1,5.56722989]
[1724709600219,1.71216,2686.2,2686.1,5.56722989]
[1724709600519,2.43949512,2686.2,2686.1,5.93939989]
[1724709600817,2.43949512,2686.4,2686.2,0.37216]
[1724709601020,2.4439496,2686.5,2686.4,3.71062989]
[1724709601316,0.37657448,2686.5,2686.4,3.71062989]
[1724709601516,1.71657448,2686.5,2686.4,3.71062989]
[1724709601713,1.34445448,2686.5,2686.4,3.71062989]
[1724709601916,4.15574553,2686.5,2686.4,3.71062989]
[1724709602217,1.71657448,2686.5,2686.4,3.71062989]
[1724709602912,2.35057448,2686.5,2686.4,3.71062989]
[1724709603420,0.37216,2686.2,2686.1,0.5889]
[1724709603611,4.15170055,2686.2,2686.1,0.5889]
[1724709603816,4.15170055,2686.2,2686.1,4.29952989]
[1724709605126,3.77954055,2686.2,2686.1,4.29952989]
[1724709605530,1.71216,2686.2,2686.1,4.29952989]
[1724709606326,4.15200596,2686.2,2686.1,4.29952989]
[1724709606527,1.71216,2686.2,2686.1,4.29952989]
[1724709609126,3.78017881,2686.2,2686.1,4.29952989]
[1724709609334,3.78016546,2686.2,2686.1,4.29952989]
[1724709610334,1.34,2686.2,2686.1,4.29952989]
[1724709610630,3.78037648,2686.2,2686.1,4.29952989]
[1724709610931,2.44037648,2686.3,2686.1,8.65552989]
[1724709611135,0.97593137,2686.4,2686.2,2.48294207]
[1724709611325,1.95222485,2686.7,2686.2,2.48294207]
[1724709611326,1.46399397,2686.7,2686.6,0.3721]
[1724709611530,0.97548672,2686.7,2686.6,6.3415169]
[1724709611824,0.97548672,2686.7,2686.6,14.20745922]
[1724709612024,1.46399397,2686.8,2686.7,0.37209]
[1724709612025,0.97548672,2686.8,2686.7,0.37209]
[1724709612229,1.46957422,2686.9,2686.8,0.37208]
[1724709612230,0.98106697,2686.9,2686.8,0.37208]
[1724709612431,0.98465276,2686.9,2686.8,4.69418]
[1724709612629,0.00916604,2686.9,2686.8,14.74508652]
[1724709613027,0.00916604,2686.9,2686.8,16.60562039]
[1724709613229,0.00916604,2686.9,2686.8,14.74508652]
[1724709613735,0.97548672,2687.2,2687.1,0.37203]
[1724709613930,0.97548672,2687.2,2687.1,4.09363]
[1724709614127,0.97548672,2687.2,2687.1,13.44963]
[1724709614331,4.18328672,2687.4,2687.3,0.37201]
[1724709614736,4.18697794,2687.4,2687.3,4.09281]
[1724709615037,4.18697794,2687.4,2687.3,4.72211]
[1724709615234,3.21149122,2687.4,2687.3,4.72211]
[1724709616328,3.21149122,2687.4,2687.3,4.3501]
[1724709616524,0.00369122,2687.4,2687.3,6.06211]
[1724709616931,0.00369122,2687.4,2687.3,6.66061]
[1724709618437,0.00369122,2687.4,2687.3,6.2886]
[1724709619135,0.00369122,2687.4,2687.3,6.66061]
[1724709621140,0.00369122,2687.4,2687.3,11.66061]
[1724709624346,1.9654,2688.2,2687.5,0.92995]
[1724709624541,1.9654,2688.2,2688.0,0.3719]
[1724709624939,1.55797,2688.3,2688.1,3.3839]
[1724709624940,2.89797,2688.3,2688.1,3.3839]
[1724709625249,2.90208729,2688.3,2688.1,3.01556224]
[1724709625838,0.37188,2688.2,2688.1,3.01556224]
[1724709626344,2.90208729,2688.3,2688.1,3.38746224]
[1724709626542,1.56208729,2688.3,2688.1,4.35556224]
[1724709626742,1.56208729,2688.3,2688.1,3.01556224]
[1724709627542,1.56208729,2688.3,2688.1,3.38745224]
[1724709627738,1.56208729,2688.3,2688.1,3.01556224]
[1724709628452,1.19021729,2688.3,2688.1,3.01556224]
[1724709629340,1.19021729,2688.3,2688.2,0.37188]
[1724709632343,1.19021729,2688.3,2688.1,3.01556224]
[1724709632344,2.90208729,2688.3,2688.1,0.37545224]
[1724709632550,2.90208729,2688.3,2688.2,3.38288]
[1724709633254,1.56208729,2688.3,2688.2,3.38288]
[1724709633552,1.19021729,2688.3,2688.2,3.38288]
[1724709635639,1.56208729,2688.3,2688.2,4.09188]
[1724709635953,1.56208729,2688.3,2688.2,7.10288]
[1724709636350,1.19021729,2688.3,2688.2,7.10288]
[1724709636544,0.59441729,2688.3,2688.2,4.09188]
[1724709636744,0.59441729,2688.3,2688.2,7.10288]
[1724709637245,0.00411729,2688.3,2688.2,7.10288]
[1724709639248,0.00411729,2688.3,2688.2,17.12222474]
[1724709640449,0.00411729,2688.3,2688.2,14.11122474]
[1724709640654,0.00411729,2688.3,2688.2,17.12222474]
[1724709641956,0.00411729,2688.3,2688.2,17.54469263]
[1724709643655,0.00558025,2688.5,2688.4,0.37185]
[1724709643861,0.00558025,2688.5,2688.4,1.71185]
[1724709644063,0.00558025,2688.5,2688.4,5.43185]
[1724709644258,0.00558025,2688.5,2688.4,8.44285]
[1724709644655,0.00934951,2688.5,2688.4,8.44285]
[1724709646661,0.00934951,2688.5,2688.4,12.37703012]
[1724709646963,0.00934951,2688.5,2688.4,13.55383012]
[1724709647266,0.00934951,2688.5,2688.4,9.36603012]
[1724709647467,0.00934951,2688.5,2688.4,12.37703012]
[1724709651559,0.00934951,2688.5,2688.4,17.37703012]
[1724709652465,0.00934951,2688.5,2688.4,12.37403012]
[1724709653063,0.00934951,2688.5,2688.4,9.36603012]
[1724709653260,0.00934951,2688.5,2688.4,12.37403012]
[1724709659070,0.00934951,2688.5,2688.4,13.30367012]
[1724709663171,0.5973,2688.7,2688.6,0.37183]
[1724709663472,0.58855837,2688.7,2688.6,8.93084783]
[1724709663663,0.58855837,2688.7,2688.6,12.65004783]
[1724709663866,0.58855837,2688.7,2688.6,9.64204783]
[1724709664067,0.58855837,2688.7,2688.6,12.65004783]
[1724709664270,0.5919207,2688.7,2688.6,12.65004783]
[1724709666771,0.5919207,2688.7,2688.6,9.64204783]
[1724709666971,0.5919207,2688.7,2688.6,12.65004783]
[1724709667373,0.5919207,2688.7,2688.6,9.64204783]
[1724709667574,0.5919207,2688.7,2688.6,12.65004783]
[1724709670681,0.00336233,2688.7,2688.6,13.85924783]
[1724709671183,0.00336233,2688.7,2688.6,12.65004783]
[1724709673682,0.00336233,2688.7,2688.6,5.92284783]
[1724709679382,0.00336233,2688.7,2688.6,6.88784834]
[1724709679975,0.00336233,2688.7,2688.6,5.92284783]
[1724709680171,0.00336233,2688.7,2688.6,9.89284834]
[1724709680674,0.00336233,2688.7,2688.6,6.88784834]
[1724709680874,0.00336233,2688.7,2688.6,4.71683]
[1724709681379,0.00336233,2688.7,2688.6,5.68183051]
[1724709682183,0.97652143,2688.7,2688.6,7.54123639]
[1724709682584,0.00336233,2688.7,2688.6,6.57623588]
[1724709683088,0.00336233,2688.7,2688.6,7.54263541]
[1724709683286,0.97652143,2688.7,2688.6,8.02371982]
[1724709685084,0.97652143,2688.7,2688.6,12.06348568]
[1724709685889,0.97652143,2688.7,2688.6,10.61598491]
[1724709686088,0.00336233,2688.7,2688.6,12.5022418]
[1724709686287,0.97652143,2688.7,2688.6,11.05204234]
[1724709686687,0.97652143,2688.7,2688.6,12.50239322]
[1724709687990,0.97652143,2688.7,2688.6,12.5023518]
[1724709688192,0.97652143,2688.7,2688.6,9.4973518]
[1724709688386,0.97652143,2688.7,2688.6,12.5023518]
[1724709688790,0.97652143,2688.7,2688.6,12.27100092]
[1724709690597,0.97652143,2688.7,2688.6,13.72159716]
[1724709690786,0.97652143,2688.7,2688.6,14.65116716]
[1724709691089,0.97652143,2688.7,2688.6,13.20057092]
[1724709691296,0.97652143,2688.7,2688.6,16.91977092]
[1724709692093,0.97652143,2688.7,2688.6,18.37028958]
[1724709692280,0.97652143,2688.7,2688.6,16.91977092]
[1724709693096,0.97652143,2688.7,2688.6,16.91975599]
[1724709693294,0.97652143,2688.7,2688.6,18.37037673]
[1724709693590,0.97652143,2688.7,2688.6,16.91975599]
[1724709694588,0.97652143,2688.7,2688.6,18.84975702]
[1724709694794,0.97652143,2688.7,2688.6,16.91975599]
[1724709696195,0.97652143,2688.7,2688.6,18.84975702]
[1724709696395,0.00336233,2688.7,2688.6,18.84975702]
[1724709696697,0.9731591,2688.9,2688.8,1.3013]
[1724709696996,0.9731591,2689.0,2688.9,1.30125]
[1724709697299,1.95140184,2689.3,2689.2,0.37174]
[1724709697300,0.00508364,2689.3,2689.2,0.37174]
[1724709697495,0.00508364,2689.3,2689.2,3.19668975]
[1724709697700,0.98345501,2689.3,2689.2,2.23068451]
[1724709698000,0.98345501,2689.3,2689.2,3.67969238]
[1724709698300,0.00852994,2689.3,2689.2,4.609032]
[1724709698594,0.00852994,2689.3,2689.2,6.36782413]
[1724709699198,0.00852994,2689.3,2689.2,7.81481061]
[1724709699902,0.00852994,2689.3,2689.2,15.72633633]
[1724709700389,0.00852994,2689.3,2689.2,15.24356177]
[1724709700590,0.00852994,2689.3,2689.2,14.27934985]
[1724709701195,0.00852994,2689.3,2689.2,13.38435618]
[1724709701399,0.00852994,2689.3,2689.2,15.24313894]
[1724709701692,0.97492507,2689.7,2689.6,0.37169]
[1724709701893,0.97492507,2689.7,2689.6,1.71169]
[1724709702097,0.97492507,2689.8,2689.7,0.37167]
[1724709702406,0.97492507,2689.8,2689.7,1.71167]
[1724709702594,0.97913777,2689.8,2689.7,1.71167]
[1724709703299,0.97913777,2689.8,2689.7,4.71667]
[1724709705296,0.0042127,2689.8,2689.7,4.71667]
[1724709706403,0.02368737,2689.8,2689.5,0.641]
[1724709706611,0.5981,2689.7,2689.6,3.005]
[1724709706804,0.5981,2689.7,2689.5,1.34]
[1724709706999,1.186,2689.6,2689.5,1.34]
[1724709707298,1.20547467,2689.6,2689.5,4.345]
[1724709708399,1.20547467,2689.6,2689.5,4.7167]
[1724709708601,0.01947467,2689.6,2689.5,4.7167]
[1724709709402,0.6031127,2689.8,2689.7,0.37167]
[1724709709707,0.6031127,2689.8,2689.7,1.67270367]
[1724709710304,0.6031127,2689.8,2689.7,2.26840367]
[1724709710493,0.6031127,2689.8,2689.7,1.34]
[1724709710699,0.6031127,2689.8,2689.7,1.71167]
[1724709711602,0.62260436,2689.8,2689.7,1.71167]
[1724709711802,0.62260436,2689.8,2689.7,1.34]
[1724709712004,0.62260436,2689.8,2689.7,4.71367]
[1724709712710,0.64209602,2689.8,2689.7,4.71367]
[1724709714208,0.64209602,2689.8,2689.7,1.71167]
[1724709714410,0.64209602,2689.8,2689.7,4.71367]
[1724709716509,0.64209602,2689.8,2689.7,7.92147]
[1724709716707,0.04319602,2689.8,2689.7,7.92147]
[1724709717099,0.04319602,2689.8,2689.7,11.63907]
[1724709717296,0.04319602,2689.8,2689.7,16.1229438]
[1724709718106,0.04319602,2689.8,2689.7,15.93364983]
[1724709719410,0.04319602,2689.8,2689.7,16.12136402]
[1724709719712,0.04319602,2689.8,2689.7,17.05055402]
[1724709721308,0.04319602,2689.8,2689.7,17.48014674]
[1724709721508,0.6174,2690.1,2690.0,0.37163]
[1724709721711,0.6174,2690.1,2690.0,1.71163]
[1724709722510,0.6174,2690.1,2690.0,1.71538833]
[1724709722511,0.62085887,2690.1,2690.0,1.71538833]
[1724709725315,0.62085887,2690.1,2690.0,3.00475833]
[1724709725617,0.62085887,2690.1,2690.0,4.34475833]
[1724709725809,0.00345887,2690.1,2690.0,4.71638833]
[1724709726015,0.00345887,2690.1,2690.0,9.02288323]
[1724709726411,0.00345887,2690.1,2690.0,12.74048323]
[1724709726620,0.00345887,2690.1,2690.0,14.86117323]
[1724709727008,0.97492507,2691.1,2690.7,0.37153]
[1724709727323,0.6099,2690.9,2690.7,0.37153]
[1724709727621,0.6099,2690.9,2690.8,4.23232605]
[1724709728015,0.61372869,2690.9,2690.8,5.57232605]
[1724709729513,0.61372869,2690.9,2690.8,8.57332605]
[1724709729709,0.61372869,2690.9,2690.8,8.94484605]
[1724709730317,0.61372869,2690.9,2690.8,5.57232605]
[1724709730519,0.61372869,2690.9,2690.8,8.57332605]
[1724709730713,0.61372869,2690.9,2690.8,8.94484605]
[1724709731126,0.00382869,2690.9,2690.8,8.94484605]
[1724709731315,0.00382869,2690.9,2690.8,4.23232605]
[1724709731516,0.00382869,2690.9,2690.8,5.94384605]
[1724709731824,0.00382869,2690.9,2690.8,4.71252]
[1724709732019,0.00382869,2690.9,2690.8,8.91290241]
[1724709734915,0.00382869,2690.9,2690.8,12.62890241]
[1724709735117,0.00382869,2690.9,2690.8,8.28790241]
[1724709735314,0.00382869,2690.9,2690.8,12.62890241]
[1724709735725,0.5779,2691.5,2691.3,0.37145]
[1724709736025,0.5779,2691.5,2691.4,1.34]
[1724709736722,0.58211377,2691.5,2691.4,1.34]
[1724709736924,0.95354377,2691.5,2691.4,1.34]
[1724709737130,0.58211377,2691.5,2691.4,1.34]
[1724709737622,0.58211377,2691.5,2690.9,1.86218025]
[1724709737623,0.37147,2691.2,2690.9,1.86218025]
[1724709737823,1.8153,2691.1,2690.9,0.00558025]
[1724709738023,1.8153,2691.1,2691.0,1.71149]
[1724709738226,1.8153,2691.1,2691.0,1.34]
[1724709738420,5.90278,2691.1,2691.0,1.34]
[1724709739928,0.37149,2691.0,2690.9,0.00558025]
[1724709740229,0.37149,2691.0,2690.6,1.34]
[1724709740230,0.92878,2690.9,2690.6,1.34]
[1724709740431,0.37154,2690.7,2690.6,1.34]
[1724709740622,0.37157,2690.5,2690.4,1.34]
[1724709740824,1.00534,2690.7,2690.4,1.71157]
[1724709741022,0.6284,2690.6,2690.1,4.4821]
[1724709741320,0.6284,2690.6,2690.4,0.37158]
[1724709741719,4.3452,2690.6,2690.4,0.37158]
[1724709741926,4.3452,2690.6,2690.1,4.48768025]
[1724709741927,4.3452,2690.6,2690.1,1.27988025]
[1724709742224,0.99996,2690.6,2690.4,1.34]
[1724709742427,4.71676,2690.6,2690.4,1.34]
[1724709742626,4.71676,2690.6,2690.5,1.34]
[1724709742829,0.99996,2690.6,2690.5,1.34]
[1724709743029,4.3452,2690.6,2690.5,1.34]
[1724709743230,4.71675,2690.6,2690.5,1.34]
[1724709743631,10.6852,2690.6,2690.1,1.34558025]
[1724709743931,0.6338,2690.7,2690.5,1.71155]
[1724709744434,4.3506,2690.7,2690.5,1.71155]
[1724709744730,4.3506,2690.7,2690.5,1.71156]
[1724709745231,4.3506,2690.7,2690.5,1.34]
[1724709745437,4.3506,2690.7,2690.5,1.71156]
[1724709745626,0.6338,2690.7,2690.5,1.71156]
[1724709746134,4.3506,2690.7,2690.5,1.71156]
[1724709746329,4.3506,2690.7,2690.6,0.37155]
[1724709746524,0.6338,2690.7,2690.6,0.37155]
[1724709746736,4.3506,2690.7,2690.6,0.37155]
[1724709746933,3.2078,2690.9,2690.5,1.34]
[1724709747129,3.8625,2690.9,2690.8,1.34]
[1724709748234,7.5785,2690.9,2690.7,1.34]
[1724709748428,7.5785,2690.9,2690.4,0.99177]
[1724709748429,3.8625,2690.9,2690.4,0.99177]
[1724709748632,3.8625,2690.9,2690.3,0.37159]
[1724709748633,1.71154,2690.7,2690.3,0.37159]
[1724709748930,1.71154,2690.7,2690.2,4.2705]
[1724709748931,0.6365,2690.6,2690.5,4.43968542]
[1724709749130,1.2553,2690.9,2690.6,0.37155]
[1724709749331,1.2553,2690.9,2690.8,1.34]
[1724709749738,1.62681,2690.9,2690.8,1.34]
[1724709749929,5.34282,2690.9,2690.6,1.71154]
[1724709750123,4.9713,2690.9,2690.6,1.34]
[1724709750331,1.62681,2690.9,2690.6,1.71154]
[1724709750531,1.62681,2690.9,2690.6,1.34]
[1724709750734,1.62681,2690.9,2690.3,6.2078]
[1724709750735,0.6547,2690.9,2690.8,1.71152]
[1724709750924,0.6547,2690.9,2690.8,1.34]
[1724709751129,4.3707,2690.9,2690.8,1.34]
[1724709751528,4.3707,2690.9,2690.7,0.37153]
[1724709751730,3.716,2690.8,2690.7,0.37154]
[1724709751927,3.716,2690.8,2690.5,1.71155]
[1724709752126,4.3342,2690.7,2690.3,1.34]
[1724709752334,0.37157,2690.5,2690.3,1.34]
[1724709752527,0.5969,2690.4,2690.3,1.71159]
[1724709752727,1.2181,2690.4,2690.3,1.34]
[1724709753129,5.30648,2690.4,2690.3,1.34]
[1724709753329,6.2749,2690.4,2690.1,0.00558025]
[1724709753542,0.3716,2690.2,2690.1,0.00558025]
[1724709753733,1.59612507,2690.4,2690.3,0.37159]
[1724709753936,0.6212,2690.4,2690.3,1.71159]
[1724709754136,0.3716,2690.3,2690.1,0.00558025]
[1724709754337,3.7168,2690.3,2690.1,1.34558025]
[1724709754543,4.08839,2690.3,2690.1,1.34558025]
[1724709754743,3.7168,2690.3,2690.1,1.34558025]
[1724709755138,0.6212,2690.4,2690.2,1.34]
[1724709755541,0.99278,2690.4,2690.2,1.34]
[1724709756241,0.37159,2690.3,2690.2,1.34]
[1724709756547,4.338,2690.4,2690.2,1.34]
[1724709756746,0.37159,2690.3,2690.2,1.34]
[1724709756947,4.70959,2690.4,2690.2,1.34]
[1724709757243,0.6212,2690.4,2690.2,1.7116]
[1724709758245,0.6212,2690.4,2690.2,1.34]
[1724709758443,5.68450507,2690.4,2690.1,1.71720025]
[1724709758637,1.96770507,2690.4,2690.1,1.71720025]
[1724709758834,1.59612507,2690.4,2690.2,0.3716]
[1724709759039,0.6212,2690.4,2690.3,1.71159]
[1724709759640,0.97492507,2690.6,2690.3,1.71158]
[1724709759833,0.6477,2690.5,2690.3,1.71158]
[1724709760034,1.99419507,2690.5,2690.3,1.71158]
[1724709762035,1.62262507,2690.5,2690.4,0.37158]
[1724709762252,8.9601682,2690.7,2690.6,0.37155]
[1724709762253,5.06292507,2690.7,2690.6,0.37155]
[1724709762750,0.628,2690.8,2690.7,0.37154]
[1724709763042,1.59957036,2690.8,2690.7,0.37154]
[1724709763242,4.17941507,2690.9,2690.8,0.37152]
[1724709763444,1.62649532,2691.1,2691.0,0.37149]
[1724709763641,1.62649532,2691.1,2691.0,1.71149]
[1724709763948,0.97719532,2691.1,2691.0,1.71149]
[1724709765056,0.00558025,2691.1,2691.0,1.71149]
[1724709765549,0.97719532,2691.1,2691.0,1.71149]
[1724709765748,0.00558025,2691.1,2691.0,1.71149]
[1724709767845,0.00558025,2691.1,2691.0,1.34]
[1724709767846,0.37706025,2691.1,2691.0,1.34]
[1724709768048,1.34867532,2691.1,2691.0,1.34]
[1724709768247,0.97719532,2691.1,2691.0,1.71149]
[1724709768853,0.00558025,2691.1,2691.0,1.71149]
[1724709769254,0.97719532,2691.1,2691.0,1.71149]
[1724709769455,1.34867532,2691.1,2691.0,1.34]
[1724709770147,0.97719532,2691.1,2691.0,1.71149]
[1724709770343,0.37149,2691.0,2690.9,0.6294]
[1724709770553,0.37151,2690.9,2690.8,1.34]
[1724709770748,0.37153,2690.8,2690.7,1.34]
[1724709770953,0.37153,2690.8,2690.7,1.71154]
[1724709771154,1.60461507,2690.9,2690.7,1.71154]
[1724709771155,1.97613507,2690.9,2690.7,1.71154]
[1724709771350,1.00452,2690.9,2690.7,1.71154]
[1724709771753,1.00452,2690.9,2690.8,1.34]
[1724709772152,5.69213507,2690.9,2690.8,1.34]
[1724709773051,1.60461507,2690.9,2690.8,1.34]
[1724709773254,0.3715,2691.0,2690.8,1.71152]
[1724709773454,0.97719532,2691.1,2690.9,0.3715]
[1724709773655,0.37706025,2691.1,2691.0,1.34]
[1724709773853,0.97752781,2691.1,2691.0,2.34489]
[1724709774360,1.34900781,2691.1,2691.0,1.9734]
[1724709774752,1.34900781,2691.1,2691.0,2.34489]
[1724709775155,0.97752781,2691.1,2691.0,2.34489]
[1724709776161,0.97752781,2691.1,2691.0,1.00489]
[1724709777062,1.34900781,2691.1,2691.0,1.00489]
[1724709777260,0.37706025,2691.1,2691.0,1.00489]
[1724709777455,1.3489984,2691.1,2691.0,1.00489]
[1724709778855,1.3489984,2691.1,2691.0,0.6334]
[1724709779258,0.37706025,2691.1,2691.0,0.6334]
[1724709779664,0.00558025,2691.1,2691.0,1.00489]
[1724709779860,0.97756077,2691.1,2691.0,1.00489]
[1724709780472,0.00558025,2691.1,2691.0,1.00489]
[1724709781057,0.00558025,2691.1,2691.0,1.65479]
[1724709782861,0.00558025,2691.1,2691.0,9.48348138]
[1724709783262,0.00558025,2691.1,2691.0,12.69348138]
[1724709784064,0.00558025,2691.1,2691.0,12.06008138]
[1724709784268,0.00558025,2691.1,2690.7,0.5973]
[1724709784269,0.3715,2691.0,2690.7,0.5973]
[1724709784466,1.0152,2691.0,2690.8,0.37152]
[1724709784667,0.97756077,2691.1,2691.0,0.37149]
[1724709784860,0.00558025,2691.1,2690.9,4.52867647]
[1724709785177,0.00558025,2691.1,2690.9,0.3715]
[1724709785178,1.34904077,2691.1,2690.9,0.3715]
[1724709785466,0.37149,2691.0,2690.8,0.37151]
[1724709785872,0.37149,2691.0,2690.9,4.07315625]
[1724709787168,0.37152,2690.9,2690.7,0.37153]
[1724709787365,1.63222,2690.9,2690.7,0.37153]
[1724709787670,0.37152,2690.8,2690.7,0.37153]
[1724709787873,1.63222,2690.9,2690.7,0.37153]
[1724709788366,0.37154,2690.7,2690.5,0.37156]
[1724709788567,0.37153,2690.8,2690.5,0.37155]
[1724709788771,0.37154,2690.7,2690.5,0.37155]
[1724709788968,0.37154,2690.7,2690.4,1.8316]
[1724709789267,0.97198052,2690.8,2690.4,2.20317]
[1724709789472,1.90081052,2690.8,2690.2,4.54303851]
[1724709789672,0.97198052,2690.6,2690.1,1.21508025]
[1724709789865,0.37159,2690.4,2690.1,1.58670025]
[1724709790060,1.34357052,2690.4,2690.2,4.14810763]
[1724709790776,0.97198052,2690.4,2690.2,4.51970763]
[1724709791066,3.09260865,2690.5,2690.2,4.51970763]
[1724709791067,2.60485052,2690.5,2690.2,4.51970763]
[1724709791268,0.97198052,2690.5,2690.4,0.37158]
[1724709791462,0.97198052,2690.6,2690.4,0.37158]
[1724709791665,1.34352052,2690.7,2690.3,0.37158]
[1724709791864,0.97198052,2690.6,2690.3,0.37158]
[1724709792060,0.97198052,2690.6,2690.4,4.33577519]
[1724709792565,0.97198052,2690.6,2690.4,0.37158]
[1724709793260,1.34352052,2690.7,2690.4,0.37158]
[1724709794467,0.97198052,2690.7,2690.2,3.21]
[1724709794869,0.97198052,2690.7,2690.5,0.37156]
[1724709795065,0.97198052,2690.7,2690.2,3.21]
[1724709795270,0.92888,2690.6,2690.1,0.00558025]
[1724709795574,0.3716,2690.3,2690.1,0.00558025]
[1724709795774,1.6365,2690.2,2690.1,0.00558025]
[1724709795971,1.2649,2690.2,2690.1,0.00558025]
[1724709796172,1.6365,2690.2,2690.1,0.00558025]
[1724709796366,5.3541,2690.2,2690.1,0.00558025]
[1724709798579,0.6239,2690.2,2690.1,0.00558025]
[1724709798770,4.3415,2690.2,2690.1,0.00558025]
[1724709799366,4.3415,2690.2,2690.1,0.37720025]
[1724709799772,4.3415,2690.2,2690.1,0.00558025]
[1724709802584,0.97238105,2690.3,2690.1,0.00558025]
[1724709802585,0.97238105,2690.3,2690.2,0.3716]
[1724709802879,0.97238105,2690.3,2690.2,0.983]
[1724709804380,1.34398105,2690.3,2690.1,3.21558025]
[1724709804574,2.59358105,2690.3,2690.1,0.00558025]
[1724709805774,2.59358105,2690.3,2690.1,0.37719025]
[1724709805775,2.22198105,2690.3,2690.1,0.37719025]
[1724709806582,1.2496,2690.3,2690.1,0.37719025]
[1724709807480,1.62119,2690.3,2690.1,0.00558025]
[1724709807692,1.30062,2690.2,2690.1,0.00558025]
[1724709807983,1.34398105,2690.2,2690.1,0.00558025]
[1724709808183,5.06158105,2690.2,2690.1,0.00558025]
[1724709809579,0.3716,2690.2,2690.1,0.00558025]
[1724709809882,2.22198105,2690.3,2690.1,0.00558025]
[1724709809883,2.22198105,2690.3,2690.1,0.37719025]
[1724709810085,2.59357105,2690.3,2690.1,0.00558025]
[1724709811188,1.62119,2690.3,2690.1,0.00558025]
[1724709811487,0.3716,2690.2,2690.1,0.00558025]
[1724709811684,0.97238105,2690.2,2690.1,0.00558025]
[1724709811876,3.7176,2690.2,2690.1,0.00558025]
[1724709812076,4.68998105,2690.2,2690.1,0.00558025]
[1724709812281,3.7176,2690.2,2690.1,0.00558025]
[1724709812788,3.7176,2690.2,2690.1,0.37720025]
[1724709812988,2.22198105,2690.3,2690.2,0.3716]
[1724709813190,2.22198105,2690.3,2690.1,0.00558025]
[1724709813389,2.22198105,2690.3,2690.2,0.3716]
[1724709814375,2.59357105,2690.3,2690.2,0.3716]
[1724709814887,2.59357105,2690.3,2690.1,0.37719025]
[1724709815188,1.0058,2690.2,2690.1,0.00558025]
[1724709815380,1.0058,2690.2,2690.1,0.37720025]
[1724709815579,1.0058,2690.2,2690.1,0.00558025]
[1724709815786,1.97818105,2690.2,2690.1,0.00558025]
[1724709816176,1.0058,2690.2,2690.1,0.00558025]
[1724709816376,1.97818105,2690.2,2690.1,0.00558025]
[1724709817281,0.6342,2690.2,2690.1,0.37720025]
[1724709817683,1.0058,2690.2,2690.1,0.37720025]
[1724709817883,0.6342,2690.2,2690.1,0.37720025]
[1724709818386,1.0058,2690.2,2690.1,0.37720025]
[1724709818591,1.0058,2690.2,2690.1,0.00558025]
[1724709819995,1.0058,2690.2,2690.1,0.37720025]
[1724709820597,1.0058,2690.2,2690.1,0.00558025]
[1724709822094,0.6342,2690.2,2690.1,0.37720025]
[1724709822495,1.0058,2690.2,2690.1,0.00558025]
[1724709824097,1.0058,2690.2,2690.1,1.34558025]
[1724709825196,5.69578105,2690.2,2690.1,0.00558025]
[1724709826703,3.7176,2690.1,2689.2,0.96364851]
[1724709826892,0.9717642,2689.6,2689.1,3.2078]
[1724709827090,4.6676463,2689.7,2688.7,0.96364851]
[1724709827091,4.1817642,2689.4,2688.7,0.5164]
[1724709827290,8.3189242,2689.2,2688.4,4.4912]
[1724709827502,0.9717642,2689.0,2688.5,0.37183]
[1724709827690,0.37561146,2689.0,2688.5,4.41544635]
[1724709827887,0.5345,2688.9,2688.5,4.4210266]
[1724709828589,0.5345,2688.9,2688.5,4.0491966]
[1724709828795,1.26761171,2689.0,2688.6,3.58182]
[1724709829199,0.00941171,2689.0,2688.7,0.37181]
[1724709831097,0.00941171,2689.0,2688.6,3.58182]
[1724709833008,0.00941171,2689.0,2688.7,0.37181]
[1724709833901,0.00941171,2689.0,2688.8,3.21]
[1724709834101,0.00941171,2689.0,2688.9,0.90778]
[1724709834297,0.00941171,2689.0,2688.9,0.536]
[1724709834798,3.72861171,2689.0,2688.5,0.00972247]
[1724709835007,0.82439,2688.9,2688.5,0.38155247]
[1724709835194,1.0857,2688.9,2688.6,0.37182]
[1724709835808,1.45748,2688.9,2688.5,0.38155247]
[1724709836299,0.00941171,2689.0,2688.8,3.58179]
[1724709836508,0.00941171,2689.0,2688.9,0.5146]
[1724709836998,0.00941171,2689.0,2688.7,0.3718]
[1724709838998,0.38119171,2689.0,2688.6,4.09642]
[1724709839598,0.38118171,2689.0,2688.7,0.37181]
[1724709840803,0.37178,2688.9,2688.6,4.09642]
[1724709841003,0.37178,2688.9,2688.6,3.7246]
[1724709841201,0.37178,2688.9,2688.6,4.09642]
[1724709842406,0.00941171,2689.0,2688.8,0.37179]
[1724709843700,0.00941171,2689.0,2688.6,3.7246]
[1724709843900,0.00941171,2689.0,2688.8,0.37179]
[1724709844601,0.38118171,2689.0,2688.7,0.3718]
[1724709845805,0.38118171,2689.0,2688.6,3.7246]
[1724709845806,0.00941171,2689.0,2688.9,0.37178]
[1724709846603,0.00941171,2689.0,2688.8,0.37179]
[1724709847297,0.00941171,2689.0,2688.6,0.5146]
[1724709847497,0.00941171,2689.0,2688.7,0.37181]
[1724709847705,0.37178,2688.9,2688.7,0.37181]
[1724709848203,0.00941171,2689.0,2688.7,0.37181]
[1724709848413,0.37179,2688.9,2688.7,0.37181]
[1724709849109,0.37179,2688.9,2688.6,0.5146]
[1724709849407,0.38119171,2689.0,2688.7,0.37181]
[1724709849610,0.38119171,2689.0,2688.8,0.3718]
[1724709850007,0.00941171,2689.0,2688.8,0.3718]
[1724709850396,0.00941171,2689.0,2688.9,0.37178]
[1724709850604,0.00941171,2689.0,2688.9,4.49510353]
[1724709850802,0.00941171,2689.0,2688.9,8.21430353]
[1724709851000,0.00941171,2689.0,2688.9,4.97188]
[1724709854509,0.00941171,2689.0,2688.9,1.25268]
[1724709855611,0.00941171,2689.0,2688.9,4.97188]
[1724709857113,0.00941171,2689.0,2688.9,1.25268]
[1724709857315,0.00941171,2689.0,2688.9,4.97188]
[1724709857516,0.00941171,2689.0,2688.9,1.25268]
[1724709858109,0.00941171,2689.0,2688.9,0.81548]
[1724709859309,0.00941171,2689.0,2688.9,4.53468]